[Event "FIDE WYCC Girls U18 2023"]
[Site "Montesilvano"]
[Date "2023.11.16"]
[Round "4.25"]
[White "Hoanca, Alexia-Ioana"]
[Black "Sasvatha A"]
[Result "0-1"]
[ECO "B12"]
[WhiteElo "1830"]
[BlackElo "1568"]
[Annotator "NA COMBH"]
[PlyCount "156"]
[EventDate "2023.11.13"]
[EventType "swiss"]
[EventCountry "ITA"]
[SourceTitle "playchess.com"]
[Source "ChessBase"]
[SourceQuality "1"]
[TimeControl "40/5400+30:1800+30"]

1. e4 {[%emt 0:00:02]} c6 {[%emt 0:00:05]} 2. d4 {[%emt 0:00:18]} d5 {[%emt 0:00:07]} 3. e5 {[%emt 0:00:04]} Bf5 {[%emt 0:00:06]} 4. h4 {[%emt 0:00:05]} h5 {[%emt 0:00:52]} 5. Bd3 {[%emt 0:00:57]} Bxd3 {[%emt 0:00:55]} 6. Qxd3 {[%emt 0:00:07]} e6 {[%emt 0:00:05]} 7. Nf3 {[%emt 0:00:28]} c5 {[%emt 0:01:48]} 8. dxc5 {[%emt 0:09:10]} Bxc5 {[%emt 0:03:46]} 9. O-O {[%emt 0:04:18]} Nc6 {[%emt 0:02:07]} 10. Nbd2 {[%emt 0:01:51]} Be7 {[%emt 0:01:11]} 11. c4 {[%emt 0:07:48]} dxc4 {[%emt 0:05:19]} 12. Qxc4 {[%emt 0:03:44]} Nh6 {[%emt 0:01:05]} 13. Ne4 {[%emt 0:00:59]} Ng4 {[%emt 0:04:06]} 14. Bf4 {[%emt 0:10:14]} O-O {[%emt 0:07:20]} 15. Neg5 {[%emt 0:26:26]} Bxg5 {[%emt 0:05:47]} 16. Nxg5 Qd4 {[%emt 0:09:07]} 17. Qc2 {[%emt 0:07:07]} Rfe8 {[%emt 0:16:17]} 18. Qh7+ {[%emt 0:01:28]} Kf8 {[%emt 0:00:05]} 19. Be3 {[%emt 0:03:17]} Qxe5 {[%emt 0:04:10]} 20. Nf3 {[%emt 0:06:38]} Qf5 {[%emt 0:04:46]} 21. Qh8+ {[%emt 0:02:50]} Ke7 {[%emt 0:00:31]} 22. Qxg7 {[%emt 0:00:08]} Rg8 {[%emt 0:06:35]} 23. Bg5+ {[%emt 0:03:31]} Nf6 {[%emt 0:02:08]} 24. Qh6 {[%emt 0:00:40]} Qg6 {[%emt 0:04:37]} 25. Bxf6+ {[%emt 0:03:57]} Kxf6 {[%emt 0:03:50]} 26. Qf4+ {[%emt 0:00:47]} Qf5 {[%emt 0:00:07]} 27. Qxf5+ {[%emt 0:00:44]} Kxf5 {[%emt 0:00:07]} 28. Rac1 {[%emt 0:00:59]} f6 {[%emt 0:01:17]} 29. Rc3 {[%emt 0:03:23]} e5 {[%emt 0:00:24]} 30. Rfc1 {[%emt 0:00:54]} Rad8 {[%emt 0:02:10]} 31. Kf1 {[%emt 0:00:58]} Rg4 {[%emt 0:00:59]} 32. g3 {[%emt 0:00:31]} Rg7 {[%emt 0:01:23]} 33. Rc5 {[%emt 0:00:45]} Rgd7 {[%emt 0:02:02]} 34. a3 {[%emt 0:00:44]} Rd3 {[%emt 0:05:35]} 35. Ne1 {[%emt 0:00:26]} Rb3 {[%emt 0:02:15]} 36. R1c2 {[%emt 0:01:22]} Rd1 {[%emt 0:01:02]} 37. R5c3 {[%emt 0:00:28]} Rxc3 {[%emt 0:00:21]} 38. Rxc3 {[%emt 0:00:11]} Rb1 {[%emt 0:02:23]} 39. Rf3+ {[%emt 0:01:07]} Ke6 {[%emt 0:00:21]} 40. Rb3 {[%emt 0:00:00]} Nd4 {[%emt 0:00:00]} 41. Rc3 {[%emt 0:02:15]} e4 {[%emt 0:02:39]} 42. Re3 {[%emt 0:01:35]} Kd5 {[%emt 0:00:52]} 43. b4 {[%emt 0:01:36]} Nf3 {[%emt 0:00:58]} 44. g4 {[%emt 0:01:11]} Nh2+ {[%emt 0:10:12]} 45. Kg2 {[%emt 0:01:09]} Nxg4 {[%emt 0:00:09]} 46. Re2 {[%emt 0:00:40]} f5 {[%emt 0:01:29]} 47. Kg3 {[%emt 0:01:12]} Ne5 {[%emt 0:01:09]} 48. Ng2 {[%emt 0:01:14]} Rb3+ {[%emt 0:03:32]} 49. Kf4 {[%emt 0:03:08]} Rf3+ {[%emt 0:08:29]} 50. Kg5 {[%emt 0:01:01]} Nd3 {[%emt 0:00:08]} 51. Ne3+ {[%emt 0:05:55]} Ke6 {[%emt 0:00:48]} 52. Nd1 {[%emt 0:00:27]} Ke5 {[%emt 0:01:48]} 53. Rd2 {[%emt 0:04:47]} f4 {[%emt 0:02:31]} 54. Kxh5 {[%emt 0:03:02]} Kf5 {[%emt 0:01:45]} 55. Rc2 {[%emt 0:02:53]} Nxf2 {[%emt 0:02:07]} 56. Nxf2 {[%emt 0:03:47]} Rxf2 {[%emt 0:00:04]} 57. Rxf2 {[%emt 0:01:14]} f3 {[%emt 0:00:43]} 58. Rf1 {[%emt 0:00:46]} Kf4 {[%emt 0:00:06]} 59. Kg6 {[%emt 0:00:17]} e3 {[%emt 0:00:03]} 60. h5 {[%emt 0:00:20]} e2 {[%emt 0:00:03]} 61. Re1 {[%emt 0:00:10]} f2 {[%emt 0:02:58]} 62. Rxe2 {[%emt 0:00:12]} f1=Q {[%emt 0:00:06]} 63. Re6 {[%emt 0:01:30]} Qd3+ {[%emt 0:01:13]} 64. Kh6 {[%emt 0:00:44]} Qd4 {[%emt 0:00:18]} 65. Kg6 {[%emt 0:00:34]} Qh8 {[%emt 0:00:57]} 66. Re7 {[%emt 0:01:36]} Kg4 {[%emt 0:00:26]} 67. h6 {[%emt 0:00:28]} Qg8+ {[%emt 0:00:13]} 68. Rg7 {[%emt 0:00:45]} Qe6+ {[%emt 0:00:14]} 69. Kh7+ {[%emt 0:00:10]} Kh5 {[%emt 0:00:04]} 70. Rg1 {[%emt 0:00:41]} Qxh6+ {[%emt 0:00:08]} 71. Kg8 {[%emt 0:00:09]} Qe6+ {[%emt 0:00:05]} 72. Kf8 {[%emt 0:00:20]} Qf5+ {[%emt 0:00:14]} 73. Ke8 {[%emt 0:00:52]} Qe4+ {[%emt 0:00:07]} 74. Kf7 {[%emt 0:00:16]} Qf3+ {[%emt 0:00:09]} 75. Kg8 {[%emt 0:00:26]} Qxa3 {[%emt 0:00:09]} 76. Kh8 {[%emt 0:00:54]} Qxb4 {[%emt 0:00:09]} 77. Rg7 {[%emt 0:00:17]} Qd4 {[%emt 0:00:09]} 78. Kh7 {[%emt 0:00:05]} Qxg7+ {[%emt 0:00:16]} 0-1

[Event "FIDE WYCC Girls U18 2023"]
[Site "Montesilvano"]
[Date "2023.11.16"]
[Round "4.26"]
[White "Latifah, Darmaki"]
[Black "Hernandez Ortega, Carolina"]
[Result "1-0"]
[ECO "C99"]
[WhiteElo "1367"]
[BlackElo "1796"]
[Annotator "NA RC"]
[PlyCount "119"]
[EventDate "2023.11.13"]
[EventType "swiss"]
[EventCountry "ITA"]
[SourceTitle "playchess.com"]
[Source "ChessBase"]
[SourceQuality "1"]
[TimeControl "40/5400+30:1800+30"]

1. e4 {[%emt 0:00:03]} e5 {[%emt 0:00:08]} 2. Nf3 {[%emt 0:00:04]} Nc6 {[%emt 0:00:06]} 3. Bb5 {[%emt 0:00:08]} a6 {[%emt 0:00:11]} 4. Ba4 {[%emt 0:00:30]} Nf6 {[%emt 0:00:17]} 5. O-O {[%emt 0:00:16]} Be7 {[%emt 0:00:16]} 6. Re1 {[%emt 0:00:10]} b5 {[%emt 0:00:10]} 7. Bb3 {[%emt 0:00:11]} O-O {[%emt 0:00:25]} 8. c3 {[%emt 0:00:08]} d6 {[%emt 0:00:11]} 9. h3 {[%emt 0:00:32]} Na5 {[%emt 0:00:17]} 10. Bc2 {[%emt 0:00:18]} c5 {[%emt 0:00:10]} 11. d4 {[%emt 0:00:43]} cxd4 {[%emt 0:00:26]} 12. cxd4 {[%emt 0:00:07]} Qc7 {[%emt 0:00:26]} 13. Nbd2 {[%emt 0:10:06]} Re8 {[%emt 0:01:37]} 14. Nb3 {[%emt 0:10:58]} Nc6 {[%emt 0:07:12]} 15. dxe5 {[%emt 0:03:24]} dxe5 {[%emt 0:00:25]} 16. a3 {[%emt 0:04:52]} a5 {[%emt 0:04:36]} 17. Be3 {[%emt 0:00:28]} a4 {[%emt 0:01:06]} 18. Nbd2 {[%emt 0:09:40]} Bb7 {[%emt 0:06:21]} 19. Bd3 {[%emt 0:01:33]} b4 {[%emt 0:03:24]} 20. Nc4 {[%emt 0:04:14]} bxa3 {[%emt 0:01:47]} 21. bxa3 {[%emt 0:14:55]} Nd7 {[%emt 0:04:54]} 22. Rb1 {[%emt 0:10:32]} Bc5 {[%emt 0:15:04]} 23. Bxc5 {[%emt 0:08:22]} Nxc5 {[%emt 0:00:09]} 24. Nb6 {[%emt 0:00:13]} Red8 {[%emt 0:06:30]} 25. Nxa8 {[%emt 0:07:13]} Bxa8 {[%emt 0:00:23]} 26. Re3 {[%emt 0:01:42]} Nd4 {[%emt 0:04:22]} 27. Nxd4 {[%emt 0:05:31]} exd4 {[%emt 0:06:53]} 28. Re1 {[%emt 0:01:28]} Qd6 {[%emt 0:05:51]} 29. Rb5 {[%emt 0:04:25]} Bc6 {[%emt 0:09:29]} 30. e5 {[%emt 0:01:14]} Qe7 {[%emt 0:01:49]} 31. Rb4 {[%emt 0:00:30]} Qg5 {[%emt 0:01:54]} 32. g3 {[%emt 0:01:06]} Qh6 {[%emt 0:00:52]} 33. Kh2 {[%emt 0:00:29]} Bd7 {[%emt 0:00:42]} 34. Rxd4 {[%emt 0:00:42]} Qxh3+ {[%emt 0:00:33]} 35. Kg1 {[%emt 0:00:02]} g5 {[%emt 0:01:25]} 36. Bf1 {[%emt 0:00:33]} Qe6 {[%emt 0:02:56]} 37. Qh5 {[%emt 0:00:52]} Qe7 {[%emt 0:03:31]} 38. Qh6 {[%emt 0:00:32]} Bf5 {[%emt 0:01:31]} 39. Rxd8+ {[%emt 0:00:11]} Qxd8 {[%emt 0:00:05]} 40. Qf6 {[%emt 0:00:00]} Qxf6 {[%emt 0:00:00]} 41. exf6 {[%emt 0:00:45]} Ne6 {[%emt 0:04:29]} 42. Bb5 {[%emt 0:00:40]} Bc2 {[%emt 0:00:56]} 43. Rc1 {[%emt 0:00:27]} Bf5 {[%emt 0:01:01]} 44. Bxa4 {[%emt 0:00:10]} h6 {[%emt 0:00:09]} 45. Rc8+ {[%emt 0:04:42]} Kh7 {[%emt 0:00:08]} 46. Bc2 {[%emt 0:03:40]} Bxc2 {[%emt 0:00:35]} 47. Rxc2 {[%emt 0:00:02]} Kg6 {[%emt 0:00:04]} 48. a4 {[%emt 0:00:11]} Nd4 {[%emt 0:01:18]} 49. a5 {[%emt 0:05:28]} Nxc2 {[%emt 0:03:20]} 50. a6 {[%emt 0:00:06]} Nd4 {[%emt 0:00:03]} 51. a7 {[%emt 0:00:02]} Ne6 {[%emt 0:00:09]} 52. a8=Q {[%emt 0:00:05]} Kxf6 {[%emt 0:00:04]} 53. Kg2 {[%emt 0:00:31]} Kg7 {[%emt 0:00:58]} 54. Qe4 {[%emt 0:00:46]} Nf8 {[%emt 0:00:49]} 55. Kh3 {[%emt 0:00:41]} Nh7 {[%emt 0:00:43]} 56. f4 {[%emt 0:03:01]} gxf4 {[%emt 0:00:54]} 57. gxf4 {[%emt 0:02:19]} Kg8 {[%emt 0:01:40]} 58. Qf5 {[%emt 0:00:14]} Kg7 {[%emt 0:01:50]} 59. Qg4+ {[%emt 0:04:53]} Kf8 {[%emt 0:02:00]} 60. Kh4 {[%emt 0:01:44]} 1-0

[Event "FIDE WYCC Girls U18 2023"]
[Site "Montesilvano"]
[Date "2023.11.16"]
[Round "4.27"]
[White "Egger, Stefanie"]
[Black "Ham Corona, Ana Paola"]
[Result "1-0"]
[ECO "B27"]
[WhiteElo "1784"]
[BlackElo "1318"]
[Annotator "NA RC"]
[PlyCount "101"]
[EventDate "2023.11.13"]
[EventType "swiss"]
[EventCountry "ITA"]
[SourceTitle "playchess.com"]
[Source "ChessBase"]
[SourceQuality "1"]
[TimeControl "40/5400+30:1800+30"]

1. e4 {[%emt 0:00:04]} c5 {[%emt 0:00:23]} 2. Nf3 {[%emt 0:00:09]} g6 {[%emt 0:00:26]} 3. d4 {[%emt 0:00:17]} cxd4 {[%emt 0:00:33]} 4. Qxd4 {[%emt 0:00:14]} Nf6 {[%emt 0:00:21]} 5. Qa4 {[%emt 0:01:06]} Nc6 {[%emt 0:03:17]} 6. Nc3 {[%emt 0:00:13]} Bg7 {[%emt 0:03:57]} 7. e5 {[%emt 0:03:21]} Ng8 {[%emt 0:01:13]} 8. Bf4 {[%emt 0:02:50]} Nh6 {[%emt 0:04:09]} 9. h3 {[%emt 0:17:09]} O-O {[%emt 0:03:53]} 10. Bd3 {[%emt 0:07:20]} Re8 {[%emt 0:05:43]} 11. O-O {[%emt 0:00:45]} d6 {[%emt 0:04:29]} 12. exd6 {[%emt 0:02:40]} exd6 {[%emt 0:04:25]} 13. Rad1 {[%emt 0:06:14]} Bd7 {[%emt 0:09:45]} 14. Qa3 {[%emt 0:01:24]} Be5 {[%emt 0:03:01]} 15. Nxe5 {[%emt 0:00:39]} dxe5 {[%emt 0:04:35]} 16. Bxh6 {[%emt 0:01:21]} g5 {[%emt 0:01:27]} 17. Be4 {[%emt 0:03:20]} Nd4 {[%emt 0:06:13]} 18. h4 {[%emt 0:14:59]} f6 {[%emt 0:04:39]} 19. Bd5+ {[%emt 0:03:28]} Kh8 {[%emt 0:02:19]} 20. Ne4 {[%emt 0:08:56]} Bf5 {[%emt 0:11:02]} 21. c4 {[%emt 0:02:39]} Be6 {[%emt 0:12:04]} 22. Bxe6 {[%emt 0:00:52]} Rxe6 23. hxg5 {[%emt 0:00:38]} f5 {[%emt 0:01:28]} 24. Nf6 {[%emt 0:09:38]} f4 {[%emt 0:05:26]} 25. Qh3 {[%emt 0:02:18]} Rxf6 {[%emt 0:00:51]} 26. gxf6 {[%emt 0:00:40]} Qxf6 {[%emt 0:00:01]} 27. Rfe1 {[%emt 0:07:34]} f3 {[%emt 0:01:14]} 28. Rxd4 {[%emt 0:01:25]} exd4 {[%emt 0:00:17]} 29. Qe6 {[%emt 0:01:09]} Qxe6 {[%emt 0:01:55]} 30. Rxe6 {[%emt 0:00:05]} Rg8 {[%emt 0:00:12]} 31. g3 {[%emt 0:00:29]} Rg6 {[%emt 0:00:18]} 32. Re8+ {[%emt 0:00:37]} Rg8 {[%emt 0:00:09]} 33. Rxg8+ {[%emt 0:00:23]} Kxg8 {[%emt 0:00:01]} 34. Kf1 {[%emt 0:00:13]} Kf7 {[%emt 0:00:27]} 35. Ke1 {[%emt 0:00:08]} Kg6 {[%emt 0:00:25]} 36. Bf8 {[%emt 0:00:35]} b6 {[%emt 0:00:43]} 37. Bd6 {[%emt 0:00:09]} Kf5 {[%emt 0:00:15]} 38. Kd2 {[%emt 0:00:24]} Ke4 {[%emt 0:00:24]} 39. Bb8 {[%emt 0:00:14]} a6 {[%emt 0:00:18]} 40. Ba7 {[%emt 0:00:00]} b5 {[%emt 0:00:00]} 41. c5 {[%emt 0:01:00]} Kd5 {[%emt 0:00:24]} 42. Kd3 {[%emt 0:00:35]} h6 {[%emt 0:02:54]} 43. c6 {[%emt 0:00:50]} Kxc6 {[%emt 0:00:13]} 44. Bxd4 {[%emt 0:00:07]} Kd5 {[%emt 0:00:54]} 45. Ke3 {[%emt 0:00:15]} h5 {[%emt 0:00:29]} 46. Bg7 {[%emt 0:00:22]} Ke6 {[%emt 0:00:19]} 47. Kxf3 {[%emt 0:00:06]} Kf5 {[%emt 0:00:05]} 48. Bc3 {[%emt 0:00:26]} Kg5 {[%emt 0:00:26]} 49. Ke4 {[%emt 0:00:43]} Kg4 {[%emt 0:00:24]} 50. Be5 {[%emt 0:00:23]} Kg5 {[%emt 0:00:46]} 51. f4+ 1-0

[Event "FIDE WYCC Girls U18 2023"]
[Site "Montesilvano"]
[Date "2023.11.16"]
[Round "4.28"]
[White "Soares, Sara Joana De Moura "]
[Black "Monteiro, Helen Ramazzotte"]
[Result "1-0"]
[ECO "E91"]
[WhiteElo "1772"]
[BlackElo "1447"]
[Annotator "NA RC"]
[PlyCount "109"]
[EventDate "2023.11.13"]
[EventType "swiss"]
[EventCountry "ITA"]
[SourceTitle "playchess.com"]
[Source "ChessBase"]
[SourceQuality "1"]
[TimeControl "40/5400+30:1800+30"]

1. d4 {[%emt 0:00:29]} Nf6 {[%emt 0:00:29]} 2. c4 {[%emt 0:00:24]} g6 {[%emt 0:00:36]} 3. Nc3 {[%emt 0:00:28]} Bg7 {[%emt 0:00:32]} 4. e4 {[%emt 0:00:18]} d6 {[%emt 0:00:14]} 5. Nf3 {[%emt 0:00:29]} O-O {[%emt 0:00:26]} 6. Be2 {[%emt 0:00:20]} Nbd7 {[%emt 0:00:36]} 7. O-O {[%emt 0:01:03]} e5 {[%emt 0:00:12]} 8. d5 {[%emt 0:00:30]} a5 {[%emt 0:00:16]} 9. Ne1 {[%emt 0:01:03]} Nc5 {[%emt 0:01:14]} 10. f3 {[%emt 0:01:39]} Ne8 {[%emt 0:03:32]} 11. Be3 {[%emt 0:01:04]} b6 {[%emt 0:00:37]} 12. b3 {[%emt 0:02:58]} f5 {[%emt 0:00:32]} 13. a3 {[%emt 0:03:19]} f4 {[%emt 0:09:09]} 14. Bf2 {[%emt 0:00:04]} g5 {[%emt 0:00:52]} 15. b4 {[%emt 0:04:27]} Nd7 {[%emt 0:04:38]} 16. Nd3 {[%emt 0:03:44]} axb4 {[%emt 0:01:50]} 17. axb4 {[%emt 0:03:36]} Rxa1 {[%emt 0:01:24]} 18. Qxa1 {[%emt 0:00:01]} h5 {[%emt 0:01:30]} 19. c5 {[%emt 0:01:45]} bxc5 {[%emt 0:00:47]} 20. bxc5 {[%emt 0:00:25]} Ndf6 {[%emt 0:01:31]} 21. Rb1 {[%emt 0:03:26]} dxc5 {[%emt 0:04:51]} 22. Bxc5 {[%emt 0:16:00]} Nd6 {[%emt 0:03:42]} 23. Qa3 {[%emt 0:30:43]} Re8 {[%emt 0:07:23]} 24. Rb8 {[%emt 0:05:07]} Qe7 {[%emt 0:06:14]} 25. Qa7 {[%emt 0:02:58]} Qf7 {[%emt 0:03:15]} 26. Nxe5 {[%emt 0:02:26]} Qe7 {[%emt 0:03:07]} 27. Nc4 {[%emt 0:02:47]} Nd7 {[%emt 0:02:32]} 28. Rb3 {[%emt 0:03:51]} Nxc5 {[%emt 0:02:08]} 29. Qxc5 {[%emt 0:00:03]} Ba6 {[%emt 0:01:58]} 30. Nxd6 {[%emt 0:04:46]} cxd6 {[%emt 0:05:32]} 31. Qf2 {[%emt 0:01:01]} Bxe2 {[%emt 0:00:19]} 32. Qxe2 {[%emt 0:00:09]} Qa7+ {[%emt 0:01:09]} 33. Kf1 {[%emt 0:00:25]} Qa1+ {[%emt 0:00:54]} 34. Nd1 {[%emt 0:04:24]} Rc8 {[%emt 0:01:02]} 35. Rd3 {[%emt 0:00:32]} Rc1 {[%emt 0:00:30]} 36. g3 {[%emt 0:00:59]} Be5 {[%emt 0:01:58]} 37. Kg2 {[%emt 0:00:38]} Qb1 {[%emt 0:00:36]} 38. Kh3 {[%emt 0:00:36]} fxg3 {[%emt 0:01:10]} 39. hxg3 {[%emt 0:00:12]} Kg7 {[%emt 0:02:45]} 40. Kg2 {[%emt 0:00:00]} h4 {[%emt 0:00:00]} 41. gxh4 {[%emt 0:13:06]} gxh4 {[%emt 0:02:40]} 42. Kh3 {[%emt 0:00:04]} Bg3 {[%emt 0:00:20]} 43. Kg4 {[%emt 0:02:35]} Qa1 {[%emt 0:00:47]} 44. Qd2 {[%emt 0:01:01]} Kf7 {[%emt 0:01:59]} 45. Rb3 {[%emt 0:03:09]} Rc7 {[%emt 0:03:04]} 46. Ne3 {[%emt 0:02:26]} Qg7+ {[%emt 0:01:40]} 47. Kh3 {[%emt 0:00:21]} Qg5 {[%emt 0:00:32]} 48. Qb2 {[%emt 0:03:30]} Be5 {[%emt 0:01:52]} 49. Qg2 {[%emt 0:00:20]} Bg3 {[%emt 0:03:09]} 50. Nf5 {[%emt 0:01:34]} Qf6 {[%emt 0:02:09]} 51. Nxg3 {[%emt 0:01:24]} hxg3 {[%emt 0:00:17]} 52. Qxg3 {[%emt 0:00:00]} Qh6+ {[%emt 0:01:05]} 53. Qh4 {[%emt 0:00:13]} Qg6 {[%emt 0:01:41]} 54. Rb8 {[%emt 0:01:24]} Ra7 {[%emt 0:01:52]} 55. Qf4+ {[%emt 0:00:13]} 1-0

[Event "FIDE WYCC Girls U18 2023"]
[Site "Montesilvano"]
[Date "2023.11.16"]
[Round "4.29"]
[White "O'Carroll, Om"]
[Black "Yim, Jay"]
[Result "1-0"]
[ECO "B31"]
[WhiteElo "1737"]
[BlackElo "1310"]
[Annotator "NA RC"]
[PlyCount "53"]
[EventDate "2023.11.13"]
[EventType "swiss"]
[EventCountry "ITA"]
[SourceTitle "playchess.com"]
[Source "ChessBase"]
[SourceQuality "1"]
[TimeControl "40/5400+30:1800+30"]

1. e4 {[%emt 0:00:01]} c5 {[%emt 0:00:05]} 2. Nf3 {[%emt 0:00:05]} Nc6 {[%emt 0:00:11]} 3. Bb5 {[%emt 0:00:15]} g6 {[%emt 0:00:16]} 4. O-O {[%emt 0:00:41]} Bg7 {[%emt 0:00:18]} 5. c3 {[%emt 0:01:52]} Nf6 {[%emt 0:00:50]} 6. Re1 {[%emt 0:01:04]} O-O {[%emt 0:02:11]} 7. d4 {[%emt 0:01:19]} d5 {[%emt 0:00:29]} 8. e5 {[%emt 0:05:49]} Ne4 {[%emt 0:00:49]} 9. Be3 {[%emt 0:06:37]} e6 {[%emt 0:24:38]} 10. Nbd2 {[%emt 0:09:44]} Nxd2 {[%emt 0:06:32]} 11. Qxd2 {[%emt 0:01:57]} Qc7 {[%emt 0:01:23]} 12. h4 {[%emt 0:04:42]} a6 {[%emt 0:01:04]} 13. Bd3 {[%emt 0:02:01]} b5 {[%emt 0:13:14]} 14. Bh6 {[%emt 0:06:33]} Ne7 {[%emt 0:01:51]} 15. g4 {[%emt 0:03:56]} Bd7 {[%emt 0:08:56]} 16. h5 {[%emt 0:07:44]} Kh8 {[%emt 0:05:19]} 17. Kg2 {[%emt 0:10:56]} f5 {[%emt 0:14:03]} 18. hxg6 {[%emt 0:06:20]} Nxg6 {[%emt 0:01:58]} 19. Rh1 {[%emt 0:04:06]} fxg4 {[%emt 0:07:27]} 20. Bxg7+ {[%emt 0:02:16]} Kxg7 {[%emt 0:00:12]} 21. Qh6+ {[%emt 0:01:18]} Kf7 {[%emt 0:02:36]} 22. Qxh7+ {[%emt 0:02:42]} Ke8 {[%emt 0:00:11]} 23. Bxg6+ {[%emt 0:03:13]} Kd8 {[%emt 0:00:20]} 24. Ng5 {[%emt 0:04:00]} Kc8 {[%emt 0:04:54]} 25. Qe7 {[%emt 0:08:25]} Kb7 {[%emt 0:02:27]} 26. Rh7 {[%emt 0:00:16]} Kc6 {[%emt 0:00:44]} 27. Nxe6 {[%emt 0:00:25]} 1-0

[Event "FIDE WYCC Girls U18 2023"]
[Site "Montesilvano"]
[Date "2023.11.16"]
[Round "4.30"]
[White "Gavrileva, Anna"]
[Black "Tikvesli, Ceylin"]
[Result "0-1"]
[ECO "A48"]
[WhiteElo "1316"]
[BlackElo "1736"]
[Annotator "NA COMBH"]
[PlyCount "148"]
[EventDate "2023.11.13"]
[EventType "swiss"]
[EventCountry "ITA"]
[SourceTitle "playchess.com"]
[Source "ChessBase"]
[SourceQuality "1"]
[TimeControl "40/5400+30:1800+30"]

1. d4 {[%emt 0:00:02]} Nf6 {[%emt 0:00:10]} 2. Nf3 {[%emt 0:00:04]} g6 {[%emt 0:00:10]} 3. Bg5 {[%emt 0:04:43]} Bg7 {[%emt 0:00:25]} 4. e3 {[%emt 0:00:59]} c5 {[%emt 0:00:50]} 5. Nbd2 {[%emt 0:04:35]} Qa5 {[%emt 0:07:03]} 6. c3 {[%emt 0:01:52]} d6 {[%emt 0:08:19]} 7. Be2 {[%emt 0:02:36]} h6 {[%emt 0:05:22]} 8. Bh4 {[%emt 0:00:52]} Bf5 {[%emt 0:02:10]} 9. O-O {[%emt 0:12:48]} O-O {[%emt 0:05:13]} 10. Qb3 {[%emt 0:12:18]} Qc7 {[%emt 0:06:21]} 11. Rfe1 {[%emt 0:12:34]} Nc6 {[%emt 0:05:06]} 12. Bf1 {[%emt 0:08:02]} g5 {[%emt 0:22:25]} 13. Bg3 {[%emt 0:00:28]} cxd4 {[%emt 0:00:24]} 14. Nxd4 {[%emt 0:04:51]} Bg6 {[%emt 0:01:33]} 15. h3 {[%emt 0:05:41]} a6 {[%emt 0:00:50]} 16. N4f3 {[%emt 0:02:03]} Na5 {[%emt 0:02:17]} 17. Qd1 {[%emt 0:08:18]} Qb6 {[%emt 0:06:35]} 18. b4 {[%emt 0:04:45]} Nc6 {[%emt 0:00:45]} 19. Qb3 {[%emt 0:01:17]} d5 {[%emt 0:03:43]} 20. a3 {[%emt 0:02:03]} Nh5 {[%emt 0:03:42]} 21. Bh2 {[%emt 0:01:09]} Rad8 {[%emt 0:02:02]} 22. g4 {[%emt 0:03:09]} Nf6 {[%emt 0:00:05]} 23. Rad1 {[%emt 0:02:26]} Rfe8 {[%emt 0:01:38]} 24. Ne5 {[%emt 0:00:57]} Bh7 {[%emt 0:01:54]} 25. Ndf3 {[%emt 0:00:36]} e6 {[%emt 0:04:06]} 26. c4 {[%emt 0:01:17]} Qa7 {[%emt 0:02:44]} 27. c5 {[%emt 0:01:32]} Ne4 {[%emt 0:00:51]} 28. Nxc6 {[%emt 0:01:58]} bxc6 {[%emt 0:00:16]} 29. Nd4 {[%emt 0:00:19]} Qb7 {[%emt 0:01:26]} 30. Qa4 {[%emt 0:00:38]} Nc3 {[%emt 0:02:34]} 31. Qxc6 {[%emt 0:00:18]} Qxc6 {[%emt 0:00:22]} 32. Nxc6 {[%emt 0:00:02]} Rc8 {[%emt 0:00:06]} 33. Na5 {[%emt 0:00:23]} Nxd1 {[%emt 0:01:04]} 34. Rxd1 {[%emt 0:00:31]} Ra8 {[%emt 0:00:48]} 35. c6 {[%emt 0:01:18]} Rec8 {[%emt 0:00:27]} 36. a4 {[%emt 0:00:32]} Bc2 {[%emt 0:00:22]} 37. Rc1 {[%emt 0:00:15]} Bxa4 {[%emt 0:00:28]} 38. c7 {[%emt 0:00:34]} e5 {[%emt 0:00:35]} 39. Nb7 {[%emt 0:00:43]} Ra7 {[%emt 0:00:36]} 40. Nd6 {[%emt 0:00:00]} Rcxc7 {[%emt 0:00:00]} 41. Rxc7 {[%emt 0:02:45]} Rxc7 {[%emt 0:00:32]} 42. Nf5 {[%emt 0:02:15]} Rc1 {[%emt 0:06:36]} 43. Kg2 {[%emt 0:02:01]} Bb5 {[%emt 0:05:58]} 44. Bxb5 {[%emt 0:00:18]} axb5 {[%emt 0:00:01]} 45. Ne7+ {[%emt 0:04:59]} Kh7 {[%emt 0:04:17]} 46. Nxd5 {[%emt 0:00:10]} Rc4 {[%emt 0:00:11]} 47. Bg3 {[%emt 0:02:51]} f6 {[%emt 0:03:09]} 48. f3 {[%emt 0:01:11]} e4 {[%emt 0:05:29]} 49. fxe4 {[%emt 0:08:07]} Rxe4 {[%emt 0:00:10]} 50. Kf3 {[%emt 0:00:31]} Re6 {[%emt 0:02:34]} 51. Nc7 {[%emt 0:08:27]} Rb6 {[%emt 0:02:23]} 52. Nd5 {[%emt 0:00:14]} Rc6 {[%emt 0:01:03]} 53. Nc7 {[%emt 0:00:44]} Bf8 {[%emt 0:01:55]} 54. Nxb5 {[%emt 0:00:48]} Bxb4 {[%emt 0:00:06]} 55. Nd4 {[%emt 0:00:43]} Ra6 {[%emt 0:00:41]} 56. Nf5 {[%emt 0:01:28]} Ra1 {[%emt 0:00:41]} 57. Bf2 {[%emt 0:01:01]} Bc5 {[%emt 0:02:00]} 58. Kg3 {[%emt 0:00:49]} Kg6 {[%emt 0:00:51]} 59. Kf3 {[%emt 0:00:24]} h5 {[%emt 0:01:10]} 60. Kg3 {[%emt 0:00:21]} Bb6 {[%emt 0:00:53]} 61. Kf3 {[%emt 0:00:45]} h4 {[%emt 0:01:16]} 62. Kg2 {[%emt 0:00:19]} Kf7 {[%emt 0:00:37]} 63. Kf3 {[%emt 0:00:37]} Ke6 {[%emt 0:00:24]} 64. Kg2 {[%emt 0:00:35]} Ke5 {[%emt 0:00:42]} 65. Kf3 {[%emt 0:00:06]} Rb1 {[%emt 0:00:23]} 66. Ng7 {[%emt 0:00:48]} Rb3 {[%emt 0:00:54]} 67. Nf5 {[%emt 0:00:07]} Ba5 {[%emt 0:00:58]} 68. Ne7 {[%emt 0:00:38]} Kd6 {[%emt 0:01:06]} 69. Nf5+ {[%emt 0:00:14]} Kd7 {[%emt 0:00:25]} 70. Ng7 {[%emt 0:00:26]} Bc7 {[%emt 0:00:11]} 71. Nf5 {[%emt 0:01:15]} Be5 {[%emt 0:00:25]} 72. Nh6 {[%emt 0:00:23]} Ke6 {[%emt 0:01:20]} 73. Nf5 {[%emt 0:00:32]} Kd5 {[%emt 0:00:07]} 74. Nh6 {[%emt 0:00:22]} Kc4 {[%emt 0:00:14]} 0-1